bitfinex-derivatives/quotes_ETHF0:USTF0_20250321
["timestamp","ask_amount","ask_price","bid_price","bid_amount"]
[1742580739437,1.3708,1965.2,1965.1,1.0182]
[1742580739627,2.38899,1965.2,1965.1,1.0182]
[1742580744826,1.3708,1965.2,1965.1,1.0182]
[1742580745227,7.54094,1965.3,1965.2,1.01819]
[1742580745432,6.5228,1965.3,1965.2,1.01819]
[1742580745838,4.5962,1965.3,1965.2,1.01819]
[1742580746037,4.5962,1965.3,1965.2,1.71409]
[1742580746334,3.304,1965.5,1965.4,1.01809]
[1742580746528,4.5852,1965.5,1965.4,1.01809]
[1742580746722,4.5852,1965.5,1965.4,2.33479]
[1742580751336,3.304,1965.5,1965.4,2.33479]
[1742580751537,1.4058,1965.6,1965.5,1.01804]
[1742580751729,1.4058,1965.6,1965.5,1.70314]
[1742580754438,2.42378,1965.6,1965.5,1.70314]
[1742580754644,1.4058,1965.6,1965.5,1.70314]
[1742580755840,2.42378,1965.6,1965.5,1.70314]
[1742580756338,1.4058,1965.6,1965.5,1.70314]
[1742580758237,3.31061789,1965.7,1965.6,1.01798]
[1742580758433,4.70161789,1965.7,1965.6,2.40878]
[1742580758839,1.39861789,1965.7,1965.6,2.40878]
[1742580759837,2.41654789,1965.7,1965.6,2.40878]
[1742580760843,1.39861789,1965.7,1965.6,2.40878]
[1742580761938,0.00761789,1965.7,1965.6,2.40878]
[1742580763247,1.36501789,1965.7,1965.6,2.40878]
[1742580763946,2.38294789,1965.7,1965.6,2.40878]
[1742580764147,1.36501789,1965.7,1965.6,2.40878]
[1742580764846,2.38294789,1965.7,1965.6,2.40878]
[1742580765146,1.01798,1965.6,1965.5,1.01802]
[1742580765347,5.62238,1965.6,1965.5,1.01802]
[1742580766944,3.287,1965.6,1965.5,1.01802]
[1742580767446,3.287,1965.6,1965.5,41.81802]
[1742580767649,4.6044,1965.6,1965.5,1.01802]
[1742580768344,3.287,1965.6,1965.5,1.01802]
[1742580768640,3.287,1965.6,1965.5,2.42342]
[1742580769241,2.31984789,1965.7,1965.6,1.01798]
[1742580769440,1.30191789,1965.7,1965.6,3.73458]
[1742580769743,2.31984789,1965.7,1965.6,3.73458]
[1742580770542,1.30191789,1965.7,1965.6,3.73458]
[1742580772647,0.00761789,1965.7,1965.6,3.73458]
[1742580773447,48.07171,1966.2,1966.1,1.01773]
[1742580773650,51.35471,1966.2,1966.1,1.01773]
[1742580773850,4.30071,1966.2,1966.1,1.01773]
[1742580774847,5.66551,1966.2,1966.1,2.36193]
[1742580775849,5.66351,1966.2,1966.1,2.36193]
[1742580778246,8.87131,1966.2,1966.1,2.36193]
[1742580778549,8.87131,1966.2,1966.1,1.01773]
[1742580779047,9.67992982,1966.2,1966.1,1.01773]
[1742580779249,9.67992982,1966.2,1966.1,2.33763]
[1742580779441,10.49277742,1966.2,1966.1,2.33763]
[1742580779646,10.49277742,1966.2,1966.1,1.01773]
[1742580780750,10.49277742,1966.2,1966.1,2.30183]
[1742580787256,9.6841576,1966.2,1966.1,2.30183]
[1742580787549,8.87131,1966.2,1966.1,2.30183]
[1742580789548,5.66351,1966.2,1966.1,2.30183]
[1742580790357,8.87131,1966.2,1966.1,2.30183]
[1742580793255,1.01773,1966.1,1966.0,1.66875789]
[1742580793453,3.00393,1966.1,1966.0,1.02535789]
[1742580793654,3.70853,1966.1,1966.0,1.02539789]
[1742580793961,3.70853,1966.1,1966.0,0.00761789]
[1742580794349,4.51708326,1966.1,1966.0,0.00761789]
[1742580794560,4.51708326,1966.1,1966.0,1.02539789]
[1742580796863,4.51708326,1966.1,1966.0,0.00761789]
[1742580797054,1.01788,1965.8,1965.7,1.3691]
[1742580797256,1.01788,1965.8,1965.7,1.69869]
[1742580797461,1.01788,1965.8,1965.7,1.9751]
[1742580797653,3.91903326,1965.8,1965.7,1.9751]
[1742580798162,1.01798,1965.6,1965.5,1.65929]
[1742580798354,1.01798,1965.6,1965.5,2.31229]
[1742580798554,1.82653326,1965.6,1965.5,2.31229]
[1742580798755,3.13893326,1965.6,1965.5,2.31229]
[1742580799762,3.13893326,1965.6,1965.5,2.31234]
[1742580800162,2.33038,1965.6,1965.5,2.31234]
[1742580800361,3.13933966,1965.6,1965.5,2.31234]
[1742580801260,1.3124,1965.6,1965.5,2.31234]
[1742580801563,2.33038,1965.6,1965.5,2.31234]
[1742580801764,1.3124,1965.6,1965.5,2.31234]
[1742580802259,2.33038,1965.6,1965.5,2.31234]
[1742580802460,1.3124,1965.6,1965.5,2.31234]
[1742580803065,2.33038,1965.6,1965.5,2.31234]
[1742580804170,2.33038,1965.6,1965.5,1.2943]
[1742580804869,1.01804,1965.5,1965.4,0.68891789]
[1742580805066,6.28584,1965.5,1965.4,0.00761789]
[1742580805869,7.17859787,1965.5,1965.4,0.00761789]
[1742580807071,7.17859855,1965.5,1965.4,0.00761789]
[1742580807274,6.37019842,1965.5,1965.4,0.00761789]
[1742580807767,7.17788697,1965.5,1965.4,0.00761789]
[1742580808174,6.37019842,1965.5,1965.4,0.00761789]
[1742580808476,6.3701989,1965.5,1965.4,0.00761789]
[1742580809570,12.3381989,1965.5,1965.4,0.00761789]
[1742580809771,1.01819,1965.2,1965.1,1.9637]
[1742580809971,4.29919,1965.2,1965.1,1.9637]
[1742580810271,4.29919,1965.2,1964.9,0.7073]
[1742580810272,1.0183,1965.0,1964.9,0.7073]
[1742580810470,1.01835,1964.9,1964.8,40.8]
[1742580810676,1.0184,1964.8,1964.7,1.3124]
[1742580810871,8.1529,1964.8,1964.7,1.3124]
[1742580811075,9.5686,1964.8,1964.7,1.3124]
[1742580812470,1.01845,1964.7,1964.6,0.00761789]
[1742580812770,3.09195,1964.7,1964.6,0.00761789]
[1742580813084,1.01861,1964.4,1964.3,0.6407]
[1742580813277,4.29961,1964.4,1964.3,2.0619]
[1742580813784,5.71531,1964.4,1964.3,2.0619]
[1742580813970,5.71531,1964.4,1964.3,0.6407]
[1742580814170,1.01866,1964.3,1964.2,1.70041]
[1742580814381,3.281,1964.4,1964.3,2.97306]
[1742580814575,1.3191,1964.5,1964.4,1.01861]
[1742580814873,4.22629,1964.7,1964.6,1.0185]
[1742580815080,7.50829,1964.7,1964.6,1.0185]
[1742580815571,8.82739,1964.7,1964.6,1.0185]
[1742580815768,8.82739,1964.7,1964.6,2.3278]
[1742580817481,3.2078,1964.7,1964.6,2.3278]
[1742580817677,6.4898,1964.7,1964.6,2.3278]
[1742580818275,7.50825,1964.7,1964.6,2.3278]
[1742580818476,7.50825,1964.7,1964.6,1.3093]
[1742580818677,7.50825,1964.7,1964.6,2.3278]
[1742580819482,7.50825,1964.7,1964.6,1.3093]
[1742580819883,7.50825,1964.7,1964.6,2.3278]
[1742580820181,7.50825,1964.7,1964.6,1.3093]
[1742580820787,7.50825,1964.7,1964.6,2.3278]
[1742580820986,7.50825,1964.7,1964.6,1.3093]
[1742580821998,7.50825,1964.7,1964.6,2.3278]
[1742580822390,7.50825,1964.7,1964.6,1.3093]
[1742580825092,7.50825,1964.7,1964.6,2.3278]
[1742580826097,3.2078,1964.7,1964.6,2.3278]
[1742580826399,14.80842789,1964.9,1964.8,1.0184]
[1742580826698,8.84042789,1964.9,1964.8,1.0184]
[1742580827290,8.84042789,1964.9,1964.8,2.0186]
[1742580827694,1.0184,1964.8,1964.7,1.70473]
[1742580827892,3.0261,1964.8,1964.7,1.70473]
[1742580828093,3.0261,1964.8,1964.7,0.6863]
[1742580828393,3.0261,1964.8,1964.7,2.0485]
[1742580831197,2.342,1964.8,1964.7,3.06695]
[1742580831396,4.3014,1964.8,1964.7,3.06695]
[1742580832098,5.6319,1964.8,1964.7,3.06695]
[1742580835702,5.6319,1964.8,1964.7,2.0485]
[1742580835903,5.6319,1964.8,1964.7,3.06695]
[1742580839409,6.44201137,1964.8,1964.7,3.06695]
[1742580839703,7.25624864,1964.8,1964.7,3.06695]
[1742580840211,7.25624864,1964.8,1964.7,2.0485]
[1742580841405,7.3406392,1964.8,1964.7,2.0485]
[1742580842008,7.25624864,1964.8,1964.7,2.0485]
[1742580843115,1.0186,1964.5,1964.4,1.01852]
[1742580843414,4.3016,1964.5,1964.4,1.01852]
[1742580843613,4.3016,1964.5,1964.4,2.32172]
[1742580843614,5.11171137,1964.5,1964.4,2.32172]
[1742580843814,6.45381137,1964.5,1964.4,2.32172]
[1742580846416,6.45381137,1964.5,1964.4,1.3032]
[1742580846617,9.45840201,1964.5,1964.1,2.54691]
[1742580846912,1.01871,1964.3,1964.2,3.71416]
[1742580847217,4.30171,1964.3,1964.2,3.71416]
[1742580847409,5.67711,1964.3,1964.2,3.71416]
[1742580848116,4.30171,1964.3,1964.2,3.71416]
[1742580849611,3.2078,1964.5,1964.4,1.01861]
[1742580849811,3.283,1964.5,1964.4,1.01861]
[1742580850222,4.30155,1964.5,1964.4,1.01861]
[1742580850720,3.283,1964.5,1964.4,1.01861]
[1742580851118,4.30155,1964.5,1964.4,1.01861]
[1742580851320,5.62275,1964.5,1964.4,1.01861]
[1742580854321,1.01861,1964.4,1964.3,2.35572]
[1742580854518,2.42561,1964.4,1964.3,2.35572]
[1742580862430,1.01866,1964.3,1964.2,0.6899]
[1742580862630,5.71686,1964.3,1964.2,0.6899]
[1742580863133,5.71686,1964.3,1964.2,2.0658]
[1742580864631,5.71686,1964.3,1964.2,0.6899]
[1742580864832,5.71686,1964.3,1964.2,2.0658]
[1742580865633,5.71686,1964.3,1964.2,3.08451]
[1742580865833,5.71686,1964.3,1964.2,2.0658]
[1742580866333,5.71686,1964.3,1964.2,3.08451]
[1742580869428,7.50941,1964.4,1964.3,1.01866]
[1742580869623,7.50941,1964.4,1964.3,2.36596]
[1742580870042,6.4908,1964.4,1964.3,2.36596]
[1742580870240,3.283,1964.4,1964.3,2.36596]
[1742580870735,2.355,1964.5,1964.4,1.01861]
[1742580870934,2.355,1964.5,1964.4,3.06061]
[1742580873334,1.01866,1964.3,1964.2,1.70856]
[1742580873633,4.30166,1964.3,1964.2,1.70856]
[1742580874726,5.64626,1964.3,1964.2,1.70856]
[1742580874931,4.6276,1964.3,1964.2,1.70856]
[1742580875533,3.283,1964.3,1964.2,1.70856]
[1742580876038,4.30166,1964.3,1964.2,1.70856]
[1742580876231,5.65806,1964.3,1964.2,1.70856]
[1742580876739,4.6394,1964.3,1964.2,1.70856]
[1742580877039,5.65806,1964.3,1964.2,1.70856]
[1742580877340,4.6394,1964.3,1964.2,1.70856]
[1742580878632,3.283,1964.3,1964.2,1.70856]
[1742580879339,4.30166,1964.3,1964.2,1.70856]
[1742580880034,4.7042,1964.3,1964.2,1.70856]
[1742580881238,5.72286,1964.3,1964.2,1.70856]
[1742580883441,4.7042,1964.3,1964.2,1.70856]
[1742580883638,3.283,1964.3,1964.2,1.70856]
[1742580884141,5.69515,1964.5,1964.4,1.01861]
[1742580884341,4.6766,1964.5,1964.4,1.01861]
[1742580884542,3.283,1964.6,1964.5,1.01855]
[1742580884843,7.8844,1964.6,1964.5,1.70525]
[1742580885032,7.8844,1964.6,1964.5,3.10315]
[1742580885234,8.90293,1964.6,1964.5,3.10315]
[1742580885844,5.69513,1964.6,1964.5,3.10315]
[1742580886740,1.3936,1964.6,1964.5,3.10315]
[1742580887044,3.283,1964.6,1964.5,3.10315]
[1742580887548,4.6397,1964.6,1964.5,3.10315]
[1742580887847,3.283,1964.7,1964.6,1.0185]
[1742580888146,4.6397,1964.7,1964.6,3.0924]
[1742580889246,5.65815,1964.7,1964.6,3.0924]
[1742580889642,4.6397,1964.7,1964.6,3.0924]
[1742580891341,1.3567,1964.7,1964.6,3.0924]
[1742580891542,2.54567,1965.1,1964.6,3.0924]
[1742580891543,0.6715,1965.2,1965.1,1.01824]
[1742580891742,1.2943,1965.0,1964.9,1.01835]
[1742580892048,1.2943,1965.0,1964.9,2.38015]
[1742580892557,1.2943,1965.0,1964.9,3.02205]
[1742580894140,0.00761789,1965.1,1965.0,1.0183]
[1742580894344,1.34601789,1965.1,1965.0,2.3118]
[1742580895136,0.00761789,1965.1,1965.0,2.3118]
[1742580895339,0.00761789,1965.1,1965.0,5.5196]
[1742580895945,0.00761789,1965.1,1965.0,8.8016]
[1742580896146,3.282,1965.4,1965.3,1.01814]
[1742580896343,1.3588,1965.5,1965.4,1.01809]
[1742580896547,4.6408,1965.5,1965.4,1.01809]
[1742580901444,5.65884,1965.5,1965.4,1.01809]
[1742580901946,4.6408,1965.5,1965.4,1.01809]
[1742580903248,1.3588,1965.5,1965.4,1.01809]
[1742580903545,4.62131789,1965.6,1965.5,1.01804]
[1742580904348,4.62131789,1965.6,1965.4,2.35534]
[1742580904545,6.34854,1965.5,1965.4,2.35534]
[1742580904746,5.3305,1965.5,1965.4,1.01804]
[1742580904947,6.34854,1965.5,1965.4,1.01804]
[1742580906248,5.3305,1965.5,1965.4,1.01804]
[1742580906552,6.34854,1965.5,1965.4,1.01804]
[1742580906745,5.3305,1965.5,1965.4,1.01804]
[1742580906942,6.34854,1965.5,1965.4,1.01804]
[1742580907356,5.3305,1965.5,1965.4,1.01804]
[1742580908351,6.34854,1965.5,1965.4,1.01804]
[1742580908655,5.3305,1965.5,1965.4,1.01804]
[1742580908857,6.34854,1965.5,1965.4,1.01804]
[1742580909247,5.3305,1965.5,1965.4,1.01804]
[1742580909657,6.34854,1965.5,1965.4,1.01804]
[1742580910754,5.3305,1965.5,1965.4,1.01804]
[1742580911152,2.54523,1965.4,1964.9,2.54585]
[1742580911453,1.01831,1965.1,1965.0,1.01826]
[1742580911651,4.29931,1965.1,1965.0,1.01826]
[1742580911848,6.35261,1965.1,1965.0,1.01826]
[1742580912651,1.01835,1964.9,1964.8,1.68955]
[1742580913054,4.29935,1964.9,1964.8,2.98745]
[1742580913255,5.70615,1964.9,1964.8,2.98745]
[1742580914352,4.6878,1964.9,1964.8,2.98745]
[1742580916051,3.2078,1965.2,1965.1,1.01824]
[1742580916359,7.50699,1965.2,1965.1,1.01824]
[1742580917248,8.87499,1965.2,1965.1,1.01824]
[1742580922573,1.01824,1965.1,1965.0,2.35566]
[1742580922773,2.37554,1965.1,1965.0,2.35566]
[1742580924474,1.3573,1965.1,1965.0,2.35566]
[1742580924868,4.6383,1965.1,1965.0,2.35566]
[1742580929274,3.281,1965.1,1965.0,2.35566]
[1742580930773,1.3255,1965.2,1965.1,1.01824]
[1742580930973,0.80880068,1965.4,1965.3,1.01814]
[1742580931169,4.6065,1965.4,1965.3,1.01814]
[1742580931379,5.41530068,1965.4,1965.3,1.01814]
[1742580931581,4.6065,1965.4,1965.3,1.01814]
[1742580931783,4.6065,1965.4,1965.3,2.39344]
[1742580932485,5.41521881,1965.4,1965.3,2.39344]
[1742580933085,4.6065,1965.4,1965.3,2.39344]
[1742580933682,5.62459,1965.4,1965.3,2.39344]
[1742580933883,4.6065,1965.4,1965.3,2.39344]
[1742580934285,5.41525732,1965.4,1965.3,2.39344]
[1742580934678,6.43334732,1965.4,1965.3,2.39344]
[1742580935177,5.41525732,1965.4,1965.3,2.39344]
[1742580935378,4.6065,1965.4,1965.3,2.39344]
[1742580935780,5.41525732,1965.4,1965.3,2.39344]
[1742580936386,6.43334732,1965.4,1965.3,2.39344]
[1742580937479,4.6065,1965.4,1965.3,2.39344]
[1742580937780,5.62459,1965.4,1965.3,2.39344]
[1742580938684,4.6065,1965.4,1965.3,2.39344]
[1742580939886,5.62459,1965.4,1965.3,2.39344]
[1742580940183,4.6065,1965.4,1965.3,2.39344]
[1742580941489,1.02559789,1965.6,1965.5,1.01804]
[1742580941794,4.30659789,1965.6,1965.5,1.01804]
[1742580942286,4.30659789,1965.6,1965.5,1.67614]
[1742580942486,3.28861789,1965.6,1965.5,1.67614]
[1742580942686,4.30659789,1965.6,1965.5,1.67614]
[1742580942883,4.58391789,1965.6,1965.5,3.06034]
[1742580943080,5.60189789,1965.6,1965.5,3.06034]
[1742580944491,6.4107432,1965.6,1965.5,3.06034]
[1742580945090,6.4107432,1965.6,1965.5,2.40224]
[1742580945583,7.22383295,1965.6,1965.5,2.40224]
[1742580945789,7.22383285,1965.6,1965.5,2.40224]
[1742580945991,6.4107432,1965.6,1965.5,2.40224]
[1742580946383,7.22382391,1965.6,1965.5,2.40224]
[1742580946685,6.4107432,1965.6,1965.5,2.40224]
[1742580946887,7.22382366,1965.6,1965.5,2.40224]
[1742580947090,6.4107432,1965.6,1965.5,2.40224]
[1742580947293,7.22382992,1965.6,1965.5,2.40224]
[1742580947793,6.4107432,1965.6,1965.5,2.40224]
[1742580947992,7.22383133,1965.6,1965.5,2.40224]
[1742580950090,6.20585133,1965.6,1965.5,2.40224]
[1742580950287,5.3917632,1965.6,1965.5,2.40224]
[1742580950487,0.00761789,1965.6,1965.5,2.40224]
[1742580951394,1.34081789,1965.6,1965.5,2.40224]
[1742580951894,0.00761789,1965.6,1965.5,2.40224]
[1742580956199,1.02559789,1965.6,1965.5,1.01804]
[1742580956396,2.40709789,1965.6,1965.5,1.01804]
[1742580956604,5.68709789,1965.6,1965.5,1.01804]
[1742580956896,7.05999789,1965.6,1965.5,1.01804]
[1742580959499,7.869447,1965.6,1965.5,1.01804]
[1742580960101,7.869447,1965.6,1965.5,2.39484]
[1742580960505,6.851467,1965.6,1965.5,2.39484]
[1742580960707,7.869447,1965.6,1965.5,2.39484]
[1742580962409,8.68324639,1965.6,1965.5,2.39484]
[1742580962602,8.68324639,1965.6,1965.5,1.01804]
[1742580963708,1.01809,1965.5,1965.4,1.01806]
[1742580963908,1.01814,1965.4,1965.3,1.0181]
[1742580964102,5.9213885,1965.4,1965.3,1.0181]
[1742580964305,7.2354885,1965.4,1965.3,1.0181]
[1742580964804,7.2354885,1965.4,1965.3,2.3461]
[1742580966798,6.42168911,1965.4,1965.3,2.3461]
[1742580967611,5.61224,1965.4,1965.3,2.3461]
[1742580970611,1.01819,1965.3,1965.1,1.3628]
[1742580970804,4.29819,1965.2,1965.1,3.03289]
[1742580970997,4.29819,1965.2,1965.1,1.01819]
[1742580971202,5.63839,1965.2,1965.1,1.01819]
[1742580972112,5.63839,1965.2,1965.1,2.35719]
[1742580973211,5.63839,1965.2,1965.1,1.01819]
[1742580973607,5.63839,1965.2,1965.1,2.30839]
[1742580974416,4.6202,1965.2,1965.1,2.30839]
[1742580974614,1.3402,1965.2,1965.1,2.30839]
[1742580974819,4.6202,1965.2,1965.1,2.30839]
[1742580975513,6.6704,1965.5,1965.4,1.01809]
[1742580975818,12.31397,1965.5,1965.4,1.01809]
[1742580976020,11.61157,1965.5,1965.4,2.35339]
[1742580976216,7.3135,1965.5,1965.4,2.35339]
[1742580976516,10.5935,1965.5,1965.4,2.35339]
[1742580976719,11.61154,1965.5,1965.4,2.35339]
[1742580978614,1.01814,1965.4,1965.3,1.01809]
[1742580978810,2.36554,1965.4,1965.3,2.37919]
[1742580980312,2.36554,1965.4,1965.3,1.01809]
[1742580981910,3.17875032,1965.4,1965.3,1.01809]
[1742580982513,6.38655032,1965.4,1965.3,1.01809]
[1742580982714,7.19566518,1965.4,1965.3,2.42989]
[1742580984722,4.01691486,1965.4,1965.3,2.42989]
[1742580984924,4.6752,1965.5,1965.4,1.01809]
[1742580985117,3.28,1965.5,1965.4,1.01809]
[1742580985318,2.21193275,1965.6,1965.5,1.01804]
[1742580986018,3.22991275,1965.6,1965.5,1.01804]
[1742580986219,3.22991275,1965.6,1965.5,2.36454]
[1742580986633,2.21193275,1965.6,1965.5,2.36454]
[1742580986929,3.22991275,1965.6,1965.5,2.36454]
[1742580987319,4.04351295,1965.6,1965.5,2.36454]
[1742580989630,1.01804,1965.5,1965.4,2.36035]
[1742580989927,2.39734,1965.5,1965.4,2.36035]
[1742580990128,1.01814,1965.4,1965.3,1.0181]
[1742580990429,2.39744,1965.4,1965.3,1.0181]
[1742580991530,1.3793,1965.4,1965.3,2.431]
[1742580991923,3.28,1965.5,1965.4,1.01809]
[1742580992225,4.6708,1965.5,1965.4,2.43099]
[1742580993721,5.68884,1965.5,1965.4,2.43099]
[1742580993923,4.6708,1965.5,1965.4,2.43099]
[1742580994532,5.68884,1965.5,1965.4,2.43099]
[1742580994730,4.6708,1965.5,1965.4,2.43099]
[1742580994926,5.68884,1965.5,1965.4,2.43099]
[1742580995127,4.6708,1965.5,1965.4,2.43099]
[1742580995531,5.68884,1965.5,1965.4,2.43099]
[1742580996033,4.6708,1965.5,1965.4,2.43099]
[1742580996432,1.01814,1965.4,1965.3,1.01811]
[1742580996626,1.01814,1965.4,1965.2,1.01815]
[1742580996627,1.01814,1965.3,1965.2,1.01815]
[1742580996929,4.29814,1965.3,1965.2,1.01815]
[1742580997123,6.52392164,1965.3,1965.2,1.01815]
[1742580997824,5.50578164,1965.3,1965.2,1.01815]
[1742580998836,6.52392164,1965.3,1965.2,1.01815]
[1742581000029,5.50578164,1965.3,1965.2,1.01815]
[1742581001347,3.2078,1965.4,1965.3,1.01814]
[1742581001533,5.63874,1965.5,1965.4,1.01809]
[1742581001734,6.44850377,1965.5,1965.4,1.01809]
[1742581002226,6.44850377,1965.5,1965.4,2.31229]
[1742581003439,7.26257114,1965.5,1965.4,2.31229]
[1742581004839,6.45280737,1965.5,1965.4,2.31229]
[1742581005237,5.63874,1965.5,1965.4,2.31229]
[1742581006540,4.6207,1965.5,1965.4,2.31229]
[1742581007741,3.279,1965.5,1965.4,2.31229]
[1742581008041,1.30971789,1965.6,1965.5,1.01804]
[1742581008243,4.58871789,1965.6,1965.5,2.31194]
[1742581008635,51.28259,1966.0,1965.9,1.01783]
[1742581008844,55.37136798,1966.0,1965.9,1.01783]
[1742581009433,1.01788,1965.9,1965.8,1.01783]
[1742581009840,2.99918,1965.9,1965.8,1.01783]
[1742581010333,3.80855976,1965.9,1965.8,1.01783]
[1742581010937,2.99918,1965.9,1965.8,1.01783]
[1742581012040,3.8084886,1965.9,1965.8,1.01783]
[1742581014641,1.01788,1965.8,1965.7,1.02554789]
[1742581014835,9.61768,1965.8,1965.7,1.02554789]
[1742581015035,10.4269886,1965.8,1965.7,1.02554789]
[1742581015543,10.4269886,1965.8,1965.7,0.00761789]
[1742581015941,10.4269886,1965.8,1965.7,1.02554789]
[1742581016239,7.8958,1965.8,1965.7,1.02554789]
[1742581016441,4.688,1965.8,1965.7,1.02554789]
[1742581016834,4.688,1965.8,1965.7,2.99284789]
[1742581018738,4.688,1965.8,1965.7,1.02554789]
[1742581018944,5.70588,1965.8,1965.7,1.02554789]
[1742581019542,6.41228,1965.8,1965.7,2.32734789]
[1742581020044,7.22144896,1965.8,1965.7,2.32734789]
[1742581020241,7.22144896,1965.8,1965.7,1.02554789]
[1742581020443,8.03491245,1965.8,1965.7,1.02554789]
[1742581021140,11.24271245,1965.8,1965.7,0.00761789]
[1742581023650,17.21071245,1965.8,1965.7,0.00761789]
[1742581023948,17.21071245,1965.8,1965.7,1.02554789]
[1742581024250,14.00291245,1965.8,1965.7,1.02554789]
[1742581024842,11.46516896,1965.8,1965.7,1.02554789]
[1742581025049,3.21541789,1966.0,1965.9,1.01783]
[1742581025346,0.00761789,1966.0,1965.9,1.01783]
[1742581025557,0.00761789,1966.0,1965.9,2.35563]
[1742581025851,4.4978,1966.2,1966.1,1.01773]
[1742581025852,3.279,1966.2,1966.1,1.01773]
[1742581026036,4.2254,1966.4,1966.3,1.01762]
[1742581026037,5.5154,1966.4,1966.3,1.01762]
[1742581026240,4.569,1966.4,1966.3,1.01762]
[1742581026646,4.569,1966.4,1966.3,2.35542]
[1742581029050,3.279,1966.4,1966.3,2.35542]
[1742581029647,4.29657,1966.4,1966.3,2.35542]
[1742581029951,5.70847,1966.4,1966.3,2.35542]
[1742581030152,4.6909,1966.4,1966.3,2.35542]
[1742581030545,5.70847,1966.4,1966.3,2.35542]
[1742581030842,4.6909,1966.4,1966.3,2.35542]
[1742581031444,5.70847,1966.4,1966.3,2.35542]
[1742581031948,4.6909,1966.4,1966.3,2.35542]
[1742581032852,3.279,1966.4,1966.3,2.35542]
[1742581033653,5.64807,1966.4,1966.3,2.35542]
[1742581034464,4.6305,1966.4,1966.3,2.35542]
[1742581036351,5.64807,1966.4,1966.3,2.35542]
[1742581037155,4.6305,1966.4,1966.3,2.35542]
[1742581037959,5.64807,1966.4,1966.3,2.35542]
[1742581038458,4.6305,1966.4,1966.3,2.35542]
[1742581039356,3.279,1966.4,1966.3,2.35542]
[1742581039557,3.28561789,1966.5,1966.4,1.01757]
[1742581040155,0.00761789,1966.5,1966.4,1.01757]
[1742581040350,6.4858,1966.8,1966.7,1.01742]
[1742581040954,7.8566,1966.8,1966.7,1.01742]
[1742581041147,7.8566,1966.8,1966.7,2.42932]
[1742581041662,6.4858,1966.8,1966.7,2.42932]
[1742581042362,7.8099,1966.8,1966.7,2.42932]
[1742581043047,6.4858,1966.8,1966.7,2.42932]
[1742581043558,3.278,1966.8,1966.7,2.42932]
[1742581044760,2.34905789,1966.9,1966.8,1.01736]
[1742581044961,1.33171789,1966.9,1966.8,3.05546]
[1742581045257,2.34902789,1966.9,1966.8,3.05546]
[1742581046056,2.34902789,1966.9,1966.8,1.3757]
[1742581046254,2.34902789,1966.9,1966.8,2.39306]
[1742581046759,2.34902789,1966.9,1966.8,1.3757]
[1742581047063,2.34902789,1966.9,1966.8,2.39306]
[1742581047653,1.33171789,1966.9,1966.8,2.39306]
[1742581048256,0.00761789,1966.9,1966.8,2.39306]
[1742581048755,1.01716,1967.3,1967.2,1.01713]
[1742581049056,1.01726,1967.1,1967.0,1.01721]
[1742581049263,1.01726,1967.1,1967.0,41.81721]
[1742581049957,1.01726,1967.1,1967.0,1.01721]
[1742581050253,3.01196,1967.1,1967.0,1.01721]
[1742581051453,1.2914,1967.1,1967.0,1.01721]
[1742581051658,1.2914,1967.1,1967.0,1.68811]
[1742581051863,2.30861,1967.1,1967.0,1.68811]
[1742581052861,1.2914,1967.1,1967.0,1.68811]
[1742581053763,2.30861,1967.1,1967.0,1.68811]
[1742581054163,1.2914,1967.1,1967.0,1.68811]
[1742581054565,3.28207069,1967.2,1967.1,1.01721]
[1742581054765,3.28207069,1967.2,1967.1,1.68981]
[1742581055153,3.28207069,1967.2,1967.1,3.05231]
[1742581056663,0.00507069,1967.2,1967.1,6.26011]
[1742581056852,0.6803,1967.7,1967.6,1.01695]
[1742581057260,4.29286,1967.8,1967.7,1.0169]
[1742581057461,5.1031763,1967.8,1967.7,1.0169]
[1742581057663,4.29286,1967.8,1967.7,1.0169]
[1742581057855,3.8881,1967.9,1967.8,1.01685]
[1742581058064,4.9049,1967.9,1967.8,1.01685]
[1742581058271,8.1809,1967.9,1967.8,1.01685]
[1742581058764,6.4838,1967.9,1967.8,1.01685]
[1742581059164,7.8411,1967.9,1967.8,1.01685]
[1742581059470,1.3573,1967.9,1967.8,1.01685]
[1742581059668,1.3573,1967.9,1967.8,2.30785]
[1742581060666,2.37409,1967.9,1967.8,2.30785]
[1742581060869,1.3573,1967.9,1967.8,2.30785]
[1742581061887,2.37409,1967.9,1967.8,2.30785]
[1742581062071,1.3573,1967.9,1967.8,2.30785]
[1742581062272,2.37409,1967.9,1967.8,2.30785]
[1742581062471,1.3573,1967.9,1967.8,2.30785]
[1742581063783,2.37409,1967.9,1967.8,2.30785]
[1742581064283,1.3573,1967.9,1967.8,2.30785]
[1742581064484,2.37409,1967.9,1967.8,2.30785]
[1742581064787,1.3573,1967.9,1967.8,2.30785]
[1742581065179,1.3573,1967.9,1967.8,3.00205]
[1742581069285,8.18902,1968.1,1967.8,3.00205]
[1742581069286,6.4838,1968.1,1968.0,1.01674]
[1742581069484,5.59579,1968.1,1968.0,1.01674]
[1742581071085,5.59579,1968.1,1968.0,2.30944]
[1742581071988,5.59579,1968.1,1968.0,3.02054]
[1742581074390,5.59579,1968.1,1968.0,2.0038]
[1742581074585,3.24388,1968.3,1968.0,2.0038]
[1742581074586,1.01662,1968.3,1968.2,1.01662]
[1742581074791,1.01659,1968.3,1968.2,1.01662]
[1742581075192,2.30099,1968.3,1968.2,1.01662]
[1742581075491,1.01664,1968.2,1968.1,1.02426789]
[1742581075686,2.30104,1968.2,1968.1,1.02426789]
[1742581076085,5.50884,1968.2,1968.1,0.00761789]
[1742581077085,5.50884,1968.2,1968.1,1.02430789]